fUST/lending_fUST_20250606
["ID","MTS","AMOUNT","RATE_DAILY","PERIOD"]
[364739510,1749223846557,-205.16095159,0.00020082,2]
[364739511,1749223846568,-151.0,0.00020082,2]
[364739512,1749223846581,-151.0,0.00020082,2]
[364739513,1749223846591,-151.81095745,0.00020082,2]
[364739514,1749223846600,-500.0,0.00020109,2]
[364739515,1749223846610,-500.0,0.00020109,2]
[364739516,1749223846621,-500.0,0.00020109,2]
[364739517,1749223846630,-151.0,0.00020109,2]
[364739518,1749223846640,-205.80618261,0.00020109,2]
[364739519,1749223846649,-151.0,0.00020109,2]
[364739520,1749223846659,-500.0,0.00020137,2]
[364739521,1749223846668,-500.0,0.00020137,2]
[364739522,1749223846678,-500.0,0.00020137,2]
[364739523,1749223846687,-151.0,0.00020137,2]
[364739524,1749223846698,-178.253,0.00020138,2]
[364739525,1749223846707,-500.0,0.00020164,2]
[364739526,1749223846717,-3274.52877712,0.0002017,2]
[364739528,1749223846726,-273.935633,0.00020187,2]
[364739529,1749223846736,-500.0,0.00020192,2]
[364739530,1749223846746,-500.0,0.00020219,2]
[364739531,1749223846756,-326.38,0.00020219,2]
[364739532,1749223846766,-160.0,0.00020236,2]
[364739533,1749223846776,-160.0,0.00020236,2]
[364739534,1749223846786,-160.0,0.00020236,2]
[364739535,1749223846795,-834.50537533,0.00020236,2]
[364739536,1749223846805,-423.83542519,0.00020236,2]
[364739537,1749223846815,-160.0,0.00020236,2]
[364739538,1749223846825,-160.0,0.00020236,2]
[364739539,1749223846835,-160.0,0.00020236,2]
[364739540,1749223846844,-229.52673067,0.00020236,2]
[364739541,1749223846854,-212.976918,0.00020236,2]
[364739542,1749223846864,-160.0,0.00020236,2]
[364739543,1749223846874,-160.0,0.00020239,2]
[364739544,1749223846884,-11849.89752062,0.00020241,2]
[364739545,1749223846893,-4642.42901656,0.00020245,2]
[364739546,1749223846903,-500.0,0.00020246,2]
[364739547,1749223846913,-267.74381626,0.00020268,2]
[364739548,1749223846923,-1000.0,0.00020268,2]
[364739549,1749223846932,-1000.0,0.00020268,2]
[364739550,1749223846942,-1500.0,0.00020268,2]
[364739551,1749223846951,-1500.0,0.00020268,2]
[364739552,1749223846961,-238.36753509,0.00020268,2]
[364739553,1749223846970,-440.0,0.00020273,2]
[364739554,1749223846980,-440.0,0.00020273,2]
[364739555,1749223846990,-440.0,0.00020273,2]
[364739556,1749223846999,-390.0,0.00020273,2]
[364739557,1749223847009,-440.0,0.00020273,2]
[364739558,1749223847019,-384.1548375,0.00020273,2]
[364739559,1749223847029,-390.0,0.00020273,2]
[364739560,1749223847039,-289.2384521,0.00020273,2]
[364739561,1749223847049,-440.0,0.00020273,2]
[364739562,1749223847058,-316.28674074,0.00020273,2]
[364739563,1749223847068,-440.0,0.00020273,2]
[364739564,1749223847078,-316.54173381,0.00020273,2]
[364739565,1749223847087,-390.0,0.00020273,2]
[364739566,1749223847097,-440.0,0.00020273,2]
[364739567,1749223847106,-213.08751468,0.00020273,2]
[364739568,1749223847116,-440.0,0.00020273,2]
[364739569,1749223847125,-390.0,0.00020273,2]
[364739570,1749223847135,-458.47,0.00020273,2]
[364739571,1749223847145,-494.03,0.00020273,2]
[364739572,1749223847155,-485.38,0.00020273,2]
[364739573,1749223847164,-440.0,0.00020273,2]
[364739574,1749223847175,-380.0,0.00020273,2]
[364739575,1749223847185,-440.0,0.00020273,2]
[364739576,1749223847195,-440.0,0.00020273,2]
[364739577,1749223847205,-420.0,0.00020273,2]
[364739578,1749223847214,-440.0,0.00020273,2]
[364739579,1749223847225,-440.0,0.00020273,2]
[364739580,1749223847234,-440.0,0.00020273,2]
[364739581,1749223847244,-340.0,0.00020273,2]
[364739582,1749223847254,-758.37,0.00020273,2]
[364739583,1749223847263,-440.0,0.00020273,2]
[364739584,1749223847273,-440.0,0.00020273,2]
[364739585,1749223847282,-440.0,0.00020273,2]
[364739586,1749223847292,-440.0,0.00020273,2]
[364739587,1749223847302,-370.0,0.00020273,2]
[364739588,1749223847312,-390.0,0.00020273,2]
[364739589,1749223847321,-440.0,0.00020273,2]
[364739590,1749223847331,-747.21,0.00020273,2]
[364739591,1749223847340,-440.0,0.00020273,2]
[364739592,1749223847350,-440.0,0.00020273,2]
[364739593,1749223847360,-440.0,0.00020273,2]
[364739594,1749223847370,-440.0,0.00020273,2]
[364739595,1749223847379,-440.0,0.00020273,2]
[364739596,1749223847389,-440.0,0.00020273,2]
[364739597,1749223847400,-440.0,0.00020273,2]
[364739598,1749223847409,-440.0,0.00020273,2]
[364739599,1749223847419,-440.0,0.00020273,2]
[364739600,1749223847429,-3215.6,0.00020273,2]
[364739601,1749223847439,-517.02,0.00020273,2]
[364739602,1749223847449,-440.0,0.00020273,2]
[364739603,1749223847458,-857.21,0.00020273,2]
[364739604,1749223847468,-729.35,0.00020273,2]
[364739605,1749223847477,-440.0,0.00020273,2]
[364739606,1749223847486,-477.98,0.00020273,2]
[364739607,1749223847496,-440.0,0.00020273,2]
[364739608,1749223847506,-400.0,0.00020273,2]
[364739609,1749223847515,-440.0,0.00020273,2]
[364739610,1749223847525,-440.0,0.00020273,2]
[364739611,1749223847535,-440.0,0.00020273,2]
[364739612,1749223847544,-1912.42,0.00020273,2]
[364739613,1749223847653,-2359.7,0.00020273,2]
[364739614,1749223847663,-7142.79,0.00020273,2]
[364739615,1749223847674,-440.0,0.00020273,2]
[364739616,1749223847683,-440.0,0.00020273,2]
[364739617,1749223847693,-3777.35,0.00020273,2]
[364739618,1749223847704,-440.0,0.00020273,2]
[364739619,1749223847714,-1127.7,0.00020273,2]
[364739620,1749223847724,-440.0,0.00020273,2]
[364739621,1749223847734,-440.0,0.00020273,2]
[364739622,1749223847743,-440.0,0.00020273,2]
[364739623,1749223847753,-1196.38,0.00020273,2]
[364739624,1749223847763,-440.0,0.00020273,2]
[364739625,1749223847772,-1802.88,0.00020273,2]
[364739626,1749223847782,-440.0,0.00020273,2]
[364739627,1749223847791,-440.0,0.00020273,2]
[364739628,1749223847801,-440.0,0.00020273,2]
[364739629,1749223847811,-562.49,0.00020273,2]
[364739630,1749223847820,-831.48,0.00020273,2]
[364739631,1749223847829,-440.0,0.00020273,2]
[364739632,1749223847839,-440.0,0.00020273,2]
[364739633,1749223847848,-5296.18,0.00020273,2]
[364739634,1749223847858,-245.4280154,0.00020273,2]
[364739635,1749223847867,-2045.12,0.00020273,2]
[364739636,1749223847876,-441.66,0.00020273,2]
[364739637,1749223847886,-440.0,0.00020273,2]
[364739638,1749223847899,-1764.13,0.00020273,2]
[364739639,1749223847909,-1492.68,0.00020273,2]
[364739640,1749223847919,-1126.0,0.00020273,2]
[364739641,1749223847928,-440.0,0.00020273,2]
[364739642,1749223847938,-440.0,0.00020273,2]
[364739643,1749223847947,-440.0,0.00020273,2]
[364739644,1749223847957,-440.0,0.00020273,2]
[364739645,1749223847968,-440.0,0.00020273,2]
[364739646,1749223847977,-440.0,0.00020273,2]
[364739647,1749223847986,-2306.82,0.00020273,2]
[364739648,1749223847996,-440.0,0.00020273,2]
[364739649,1749223848005,-440.0,0.00020273,2]
[364739650,1749223848015,-440.0,0.00020273,2]
[364739651,1749223848024,-685.82,0.00020273,2]
[364739652,1749223848034,-2874.28,0.00020273,2]
[364739653,1749223848043,-440.0,0.00020273,2]
[364739654,1749223848053,-3776.46,0.00020273,2]
[364739655,1749223848063,-440.0,0.00020273,2]
[364739656,1749223848072,-465.99,0.00020273,2]
[364739657,1749223848082,-440.0,0.00020273,2]
[364739658,1749223848091,-440.0,0.00020273,2]
[364739659,1749223848101,-1767.71,0.00020273,2]
[364739660,1749223848111,-410.0,0.00020273,2]
[364739661,1749223848120,-455.73,0.00020273,2]
[364739662,1749223848130,-2864.87,0.00020273,2]
[364739663,1749223848139,-281.38911084,0.00020273,2]
[364739664,1749223848149,-440.0,0.00020273,2]
[364739665,1749223848159,-440.0,0.00020273,2]
[364739666,1749223848168,-1011.19,0.00020273,2]
[364739667,1749223848178,-2220.42,0.00020273,2]
[364739668,1749223848187,-440.0,0.00020273,2]
[364739669,1749223848197,-527.023099,0.00020274,2]
[364739670,1749223848207,-4642.42901656,0.00020417,3]
[364739671,1749223848216,-612.04,0.00020528,3]
[364739672,1749223848226,-306.02,0.00020528,3]
[364739673,1749223848236,-318.80190651,0.00020547,2]
[364739674,1749223848245,-407.827277,0.00020547,2]
[364739675,1749223848255,-440.0,0.00020547,2]
[364739676,1749223848264,-440.0,0.00020547,2]
[364739677,1749223848274,-440.0,0.00020547,2]
[364739678,1749223848284,-440.0,0.00020547,2]
[364739679,1749223848294,-440.0,0.00020547,2]
[364739680,1749223848304,-458.47,0.00020547,2]
[364739681,1749223848314,-494.03,0.00020547,2]
[364739682,1749223848324,-485.38,0.00020547,2]
[364739683,1749223848334,-380.0,0.00020547,2]
[364739684,1749223848344,-440.0,0.00020547,2]
[364739685,1749223848354,-440.0,0.00020547,2]
[364739686,1749223848364,-440.0,0.00020547,2]
[364739687,1749223848374,-440.0,0.00020547,2]
[364739688,1749223848384,-240.0,0.00020547,2]
[364739689,1749223848394,-758.37,0.00020547,2]
[364739690,1749223848404,-325.29681802,0.00020547,2]
[364739691,1749223848414,-440.0,0.00020547,2]
[364739692,1749223848425,-440.0,0.00020547,2]
[364739693,1749223848434,-440.0,0.00020547,2]
[364739694,1749223848444,-440.0,0.00020547,2]
[364739695,1749223848454,-747.21,0.00020547,2]
[364739696,1749223848463,-440.0,0.00020547,2]
[364739697,1749223848473,-440.0,0.00020547,2]
[364739698,1749223848483,-440.0,0.00020547,2]
[364739699,1749223848493,-380.0,0.00020547,2]
[364739700,1749223848503,-440.0,0.00020547,2]
[364739701,1749223848512,-440.0,0.00020547,2]
[364739702,1749223848521,-440.0,0.00020547,2]
[364739703,1749223848531,-440.0,0.00020547,2]
[364739704,1749223848540,-440.0,0.00020547,2]
[364739705,1749223848550,-3215.6,0.00020547,2]
[364739706,1749223848561,-517.02,0.00020547,2]
[364739707,1749223848576,-440.0,0.00020547,2]
[364739708,1749223848585,-857.21,0.00020547,2]
[364739709,1749223848594,-729.35,0.00020547,2]
[364739710,1749223848604,-380.0,0.00020547,2]
[364739711,1749223848614,-477.98,0.00020547,2]
[364739712,1749223848623,-440.0,0.00020547,2]
[364739713,1749223848633,-440.0,0.00020547,2]
[364739714,1749223848642,-440.0,0.00020547,2]
[364739715,1749223848653,-440.0,0.00020547,2]
[364739716,1749223848663,-1912.42,0.00020547,2]
[364739717,1749223848672,-2359.7,0.00020547,2]
[364739718,1749223848681,-7142.79,0.00020547,2]
[364739719,1749223848691,-440.0,0.00020547,2]
[364739720,1749223848701,-440.0,0.00020547,2]
[364739721,1749223848710,-3777.35,0.00020547,2]
[364739722,1749223848721,-440.0,0.00020547,2]
[364739723,1749223848731,-1127.7,0.00020547,2]
[364739724,1749223848740,-440.0,0.00020547,2]
[364739725,1749223848750,-440.0,0.00020547,2]
[364739726,1749223848760,-440.0,0.00020547,2]
[364739727,1749223848769,-1196.38,0.00020547,2]
[364739728,1749223848779,-440.0,0.00020547,2]
[364739729,1749223848788,-1802.88,0.00020547,2]
[364739730,1749223848797,-440.0,0.00020547,2]
[364739731,1749223848806,-440.0,0.00020547,2]
[364739732,1749223848815,-440.0,0.00020547,2]
[364739733,1749223848824,-562.49,0.00020547,2]
[364739734,1749223848833,-831.48,0.00020547,2]
[364739735,1749223848842,-440.0,0.00020547,2]
[364739736,1749223848851,-440.0,0.00020547,2]
[364739737,1749223848860,-5296.18,0.00020547,2]
[364739738,1749223848869,-2045.12,0.00020547,2]
[364739739,1749223848879,-441.66,0.00020547,2]
[364739740,1749223848887,-440.0,0.00020547,2]
[364739741,1749223848896,-1764.13,0.00020547,2]
[364739742,1749223848905,-1492.68,0.00020547,2]
[364739743,1749223848915,-1126.0,0.00020547,2]
[364739744,1749223848924,-440.0,0.00020547,2]
[364739745,1749223848933,-206.82,0.00020547,2]
[364739746,1749223848943,-440.0,0.00020547,2]
[364739747,1749223848952,-440.0,0.00020547,2]
[364739748,1749223848962,-440.0,0.00020547,2]
[364739749,1749223848971,-555.76,0.00020547,2]
[364739750,1749223848980,-2306.82,0.00020547,2]
[364739751,1749223848989,-440.0,0.00020547,2]
[364739752,1749223848999,-440.0,0.00020547,2]
[364739753,1749223849008,-440.0,0.00020547,2]
[364739754,1749223849017,-685.82,0.00020547,2]
[364739755,1749223849026,-2874.28,0.00020547,2]
[364739756,1749223849036,-400.0,0.00020547,2]
[364739757,1749223849045,-418.82031128,0.00020547,2]
[364739758,1749223849055,-3776.46,0.00020547,2]
[364739759,1749223849064,-465.99,0.00020547,2]
[364739760,1749223849074,-440.0,0.00020547,2]
[364739761,1749223849083,-440.0,0.00020547,2]
[364739762,1749223849093,-1767.71,0.00020547,2]
[364739763,1749223849102,-455.73,0.00020547,2]
[364739764,1749223849112,-2864.87,0.00020547,2]
[364739765,1749223849121,-446.24709914,0.00020547,2]
[364739766,1749223849130,-399.86829182,0.00020547,2]
[364739767,1749223849139,-1011.19,0.00020547,2]
[364739768,1749223849149,-2220.42,0.00020547,2]
[364739769,1749223849158,-440.0,0.00020547,2]
[364739770,1749223849167,-237.00277563,0.00020572,2]
[364739771,1749223849177,-4642.42901656,0.0002059,3]
[364739772,1749223849186,-1083.65,0.000206,2]
[364739773,1749223849195,-1959.57,0.000206,2]
[364739774,1749223849205,-55660.61,0.000206,2]
[364739775,1749223849214,-1200.0,0.00020762,2]
[364739776,1749223849224,-11849.89752062,0.00020762,3]
[364739777,1749223849234,-212.976918,0.00020762,3]
[364739778,1749223849243,-4642.42901656,0.00020762,3]
[364739779,1749223849253,-151.0,0.000208,4]
[364739780,1749223849262,-487.83526815,0.00020816,2]
[364739781,1749223849272,-2000.0,0.00020816,2]
[364739782,1749223849281,-392.62903522,0.00020821,2]
[364739783,1749223849291,-440.0,0.00020821,2]
[364739784,1749223849301,-386.64305447,0.00020821,2]
[364739785,1749223849311,-440.0,0.00020821,2]
[364739786,1749223849320,-440.0,0.00020821,2]
[364739787,1749223849330,-458.47,0.00020821,2]
[364739788,1749223849339,-494.03,0.00020821,2]
[364739789,1749223849349,-485.38,0.00020821,2]
[364739790,1749223849358,-370.0,0.00020821,2]
[364739791,1749223849368,-440.0,0.00020821,2]
[364739792,1749223849377,-440.0,0.00020821,2]
[364739793,1749223849387,-440.0,0.00020821,2]
[364739794,1749223849397,-758.37,0.00020821,2]
[364739795,1749223849406,-360.83897167,0.00020821,2]
[364739796,1749223849415,-440.0,0.00020821,2]
[364739797,1749223849425,-373.68576195,0.00020821,2]
[364739798,1749223849434,-370.0,0.00020821,2]
[364739799,1749223849443,-747.21,0.00020821,2]
[364739800,1749223849452,-440.0,0.00020821,2]
[364739801,1749223849461,-370.0,0.00020821,2]
[364739802,1749223849471,-380.0,0.00020821,2]
[364739803,1749223849480,-440.0,0.00020821,2]
[364739804,1749223849490,-440.0,0.00020821,2]
[364739805,1749223849500,-440.0,0.00020821,2]
[364739806,1749223849509,-440.0,0.00020821,2]
[364739807,1749223849519,-440.0,0.00020821,2]
[364739808,1749223849528,-3215.6,0.00020821,2]
[364739809,1749223849537,-517.02,0.00020821,2]
[364739810,1749223849546,-440.0,0.00020821,2]
[364739811,1749223849556,-857.21,0.00020821,2]
[364739812,1749223849565,-729.35,0.00020821,2]
[364739813,1749223849576,-477.98,0.00020821,2]
[364739814,1749223849588,-440.0,0.00020821,2]
[364739815,1749223849597,-440.0,0.00020821,2]
[364739816,1749223849607,-532.52361612,0.00020821,2]
[364739817,1749223849616,-280.0,0.00020821,2]
[364739818,1749223849627,-1912.42,0.00020821,2]
[364739819,1749223849636,-2359.7,0.00020821,2]
[364739820,1749223849647,-7142.79,0.00020821,2]
[364739821,1749223849656,-440.0,0.00020821,2]
[364739822,1749223849666,-440.0,0.00020821,2]
[364739823,1749223849676,-3777.35,0.00020821,2]
[364739824,1749223849687,-464.55,0.00020821,2]
[364739825,1749223849696,-1127.7,0.00020821,2]
[364739826,1749223849706,-370.0,0.00020821,2]
[364739827,1749223849715,-440.0,0.00020821,2]
[364739828,1749223849725,-440.0,0.00020821,2]
[364739829,1749223849735,-1196.38,0.00020821,2]
[364739830,1749223849745,-440.0,0.00020821,2]
[364739831,1749223849842,-1802.88,0.00020821,2]
[364739832,1749223849852,-454.8189457,0.00020821,2]
[364739833,1749223849861,-440.0,0.00020821,2]
[364739834,1749223849871,-440.0,0.00020821,2]
[364739835,1749223849881,-562.49,0.00020821,2]
[364739836,1749223849890,-831.48,0.00020821,2]
[364739837,1749223849900,-440.0,0.00020821,2]
[364739838,1749223849910,-440.0,0.00020821,2]
[364739839,1749223849921,-5296.18,0.00020821,2]
[364739840,1749223849931,-2045.12,0.00020821,2]
[364739841,1749223849941,-441.66,0.00020821,2]
[364739842,1749223849951,-440.0,0.00020821,2]
[364739843,1749223849961,-1764.13,0.00020821,2]
[364739844,1749223849971,-1492.68,0.00020821,2]
[364739845,1749223849981,-1126.0,0.00020821,2]
[364739846,1749223849991,-440.0,0.00020821,2]
[364739847,1749223850000,-440.0,0.00020821,2]
[364739848,1749223850010,-440.0,0.00020821,2]
[364739849,1749223850020,-440.0,0.00020821,2]
[364739850,1749223850030,-2306.82,0.00020821,2]
[364739851,1749223850039,-440.0,0.00020821,2]
[364739852,1749223850049,-440.0,0.00020821,2]
[364739853,1749223850059,-440.0,0.00020821,2]
[364739854,1749223850069,-685.82,0.00020821,2]
[364739855,1749223850078,-2874.28,0.00020821,2]
[364739856,1749223850087,-465.99,0.00020821,2]
[364739857,1749223850096,-3776.46,0.00020821,2]
[364739858,1749223850106,-440.0,0.00020821,2]
[364739859,1749223850117,-440.0,0.00020821,2]
[364739860,1749223850126,-1767.71,0.00020821,2]
[364739861,1749223850135,-455.73,0.00020821,2]
[364739862,1749223850145,-2864.87,0.00020821,2]
[364739863,1749223850155,-1011.19,0.00020821,2]
[364739864,1749223850164,-2220.42,0.00020821,2]
[364739865,1749223850174,-440.0,0.00020821,2]
[364739866,1749223850184,-420.0,0.00020888,2]
[364739867,1749223850194,-420.0,0.00020888,2]
[364739868,1749223850205,-420.0,0.0002089,2]
[364739869,1749223850215,-4642.42901656,0.00020934,4]
[364739870,1749223850225,-3274.52877712,0.00020988,2]
[364739871,1749223850234,-1680.0,0.00020989,2]
[364739872,1749223850244,-53695.10704469,0.00021,2]
[364739873,1749223850253,-268.19408289,0.00021,2]
[364739874,1749223850262,-15277.71212103,0.00021,7]
[364739875,1749223850272,-200.60165358,0.00021,2]
[364739876,1749223850281,-391.65,0.00021028,2]
[364739877,1749223850291,-440.0,0.00021095,2]
[364739878,1749223850300,-440.0,0.00021095,2]
[364739879,1749223850310,-440.0,0.00021095,2]
[364739880,1749223850320,-458.47,0.00021095,2]
[364739881,1749223850330,-494.03,0.00021095,2]
[364739882,1749223850340,-485.38,0.00021095,2]
[364739883,1749223850349,-440.0,0.00021095,2]
[364739884,1749223850359,-440.0,0.00021095,2]
[364739885,1749223850368,-440.0,0.00021095,2]
[364739886,1749223850378,-758.37,0.00021095,2]
[364739887,1749223850388,-440.0,0.00021095,2]
[364739888,1749223850397,-747.21,0.00021095,2]
[364739889,1749223850409,-440.0,0.00021095,2]
[364739890,1749223850419,-440.0,0.00021095,2]
[364739891,1749223850429,-264.28957184,0.00021095,2]
[364739892,1749223850439,-440.0,0.00021095,2]
[364739893,1749223850449,-440.0,0.00021095,2]
[364739894,1749223850459,-440.0,0.00021095,2]
[364739895,1749223850468,-3215.6,0.00021095,2]
[364739896,1749223850479,-517.02,0.00021095,2]
[364739897,1749223850489,-440.0,0.00021095,2]
[364739898,1749223850498,-857.21,0.00021095,2]
[364739899,1749223850508,-729.35,0.00021095,2]
[364739900,1749223850517,-477.98,0.00021095,2]
[364739901,1749223850527,-440.0,0.00021095,2]
[364739902,1749223850537,-279.58,0.00021095,2]
[364739903,1749223850547,-1912.42,0.00021095,2]
[364739904,1749223850558,-2359.7,0.00021095,2]
[364739905,1749223850568,-7142.79,0.00021095,2]
[364739906,1749223850580,-558.88568768,0.00021095,2]
[364739907,1749223850590,-440.0,0.00021095,2]
[364739908,1749223850600,-3777.35,0.00021095,2]
[364739909,1749223850611,-1127.7,0.00021095,2]
[364739910,1749223850620,-360.0,0.00021095,2]
[364739911,1749223850630,-440.0,0.00021095,2]
[364739912,1749223850639,-1196.38,0.00021095,2]
[364739913,1749223850650,-378.44,0.00021095,2]
[364739914,1749223850660,-1802.88,0.00021095,2]
[364739915,1749223850669,-440.0,0.00021095,2]
[364739916,1749223850678,-440.0,0.00021095,2]
[364739917,1749223850688,-562.49,0.00021095,2]
[364739918,1749223850698,-831.48,0.00021095,2]
[364739919,1749223850708,-440.0,0.00021095,2]
[364739920,1749223850717,-440.0,0.00021095,2]
[364739921,1749223850728,-5296.18,0.00021095,2]
[364739922,1749223850737,-2045.12,0.00021095,2]
[364739923,1749223850747,-441.66,0.00021095,2]
[364739924,1749223850756,-440.0,0.00021095,2]
[364739925,1749223850766,-1764.13,0.00021095,2]
[364739926,1749223850775,-1492.68,0.00021095,2]
[364739927,1749223850784,-1126.0,0.00021095,2]
[364739928,1749223850795,-440.0,0.00021095,2]
[364739929,1749223850804,-440.0,0.00021095,2]
[364739930,1749223850814,-440.0,0.00021095,2]
[364739931,1749223850823,-440.0,0.00021095,2]
[364739932,1749223850833,-2306.82,0.00021095,2]
[364739933,1749223850842,-440.0,0.00021095,2]
[364739934,1749223850851,-440.0,0.00021095,2]
[364739935,1749223850861,-440.0,0.00021095,2]
[364739936,1749223850870,-685.82,0.00021095,2]
[364739937,1749223850880,-2874.28,0.00021095,2]
[364739938,1749223850889,-465.99,0.00021095,2]
[364739939,1749223850898,-3776.46,0.00021095,2]
[364739940,1749223850908,-440.0,0.00021095,2]
[364739941,1749223850917,-440.0,0.00021095,2]
[364739942,1749223850927,-1767.71,0.00021095,2]
[364739943,1749223850936,-455.73,0.00021095,2]
[364739944,1749223850945,-2864.87,0.00021095,2]
[364739945,1749223850955,-1011.19,0.00021095,2]
[364739946,1749223850964,-2220.42,0.00021095,2]
[364739947,1749223850974,-440.0,0.00021095,2]
[364739948,1749223850983,-151.0,0.000211,4]
[364739949,1749223850992,-4642.42901656,0.00021107,4]
[364739950,1749223851001,-151.0,0.00021252,2]
[364739951,1749223851011,-207.4,0.00021252,2]
[364739952,1749223851020,-1688.0,0.00021252,2]
[364739953,1749223851029,-500.0,0.00021252,2]
[364739954,1749223851039,-500.0,0.00021252,2]
[364739955,1749223851048,-500.0,0.00021252,2]
[364739956,1749223851057,-632.79567003,0.00021252,2]
[364739957,1749223851067,-500.0,0.00021252,2]
[364739958,1749223851076,-500.0,0.00021252,2]
[364739959,1749223851086,-500.0,0.00021252,2]
[364739960,1749223851095,-500.0,0.00021252,2]
[364739961,1749223851104,-500.0,0.00021252,2]
[364739962,1749223851113,-500.0,0.00021252,2]
[364739963,1749223851122,-500.0,0.00021252,2]
[364739964,1749223851131,-5000.0,0.00021252,2]
[364739965,1749223851141,-500.0,0.00021252,2]
[364739966,1749223851150,-500.0,0.00021252,2]
[364739967,1749223851159,-500.0,0.00021252,2]
[364739968,1749223851168,-500.0,0.00021252,2]
[364739969,1749223851178,-500.0,0.00021252,2]
[364739970,1749223851187,-500.0,0.00021252,2]
[364739971,1749223851196,-500.0,0.00021252,2]
[364739972,1749223851205,-500.0,0.00021252,2]
[364739973,1749223851214,-3034.25905547,0.00021252,2]
[364739974,1749223851223,-167.2222613,0.00021269,2]
[364739975,1749223851233,-4642.42901656,0.00021279,5]
[364739976,1749223851242,-1750.456,0.00021307,2]
[364739977,1749223851251,-1815.222872,0.00021362,2]
[364739978,1749223851261,-1500.0,0.00021364,2]
[364739979,1749223851271,-440.0,0.00021369,2]
[364739980,1749223851280,-440.0,0.00021369,2]
[364739981,1749223851290,-440.0,0.00021369,2]
[364739982,1749223851299,-458.47,0.00021369,2]
[364739983,1749223851309,-494.03,0.00021369,2]
[364739984,1749223851319,-485.38,0.00021369,2]
[364739985,1749223851330,-440.0,0.00021369,2]
[364739986,1749223851340,-440.0,0.00021369,2]
[364739987,1749223851350,-440.0,0.00021369,2]
[364739988,1749223851360,-758.37,0.00021369,2]
[364739989,1749223851369,-440.0,0.00021369,2]
[364739990,1749223851379,-747.21,0.00021369,2]
[364739991,1749223851389,-440.0,0.00021369,2]
[364739992,1749223851399,-440.0,0.00021369,2]
[364739993,1749223851410,-440.0,0.00021369,2]
[364739994,1749223851421,-446.16,0.00021369,2]
[364739995,1749223851432,-440.0,0.00021369,2]
[364739996,1749223851443,-3215.6,0.00021369,2]
[364739997,1749223851453,-517.02,0.00021369,2]
[364739998,1749223851463,-440.0,0.00021369,2]
[364739999,1749223851474,-857.21,0.00021369,2]
[364740000,1749223851485,-729.35,0.00021369,2]
[364740001,1749223851496,-477.98,0.00021369,2]
[364740002,1749223851506,-440.0,0.00021369,2]
[364740003,1749223851516,-1912.42,0.00021369,2]
[364740004,1749223851526,-2359.7,0.00021369,2]
[364740005,1749223851536,-7142.79,0.00021369,2]
[364740006,1749223851545,-440.0,0.00021369,2]
[364740007,1749223851555,-3777.35,0.00021369,2]
[364740008,1749223851566,-1127.7,0.00021369,2]
[364740009,1749223851579,-440.0,0.00021369,2]
[364740010,1749223851590,-1196.38,0.00021369,2]